Cogmind - Beta 13 @@@ ROGUE MODE // 2024.03.02 @ 14:20:22 Player: Kaz Result: Destroyed by G-47 Trooper with Particle Gun Performance ------------- Evolutions (0) 0 Regions Visited (1) 200 Robots Destroyed (18) 90 Value Destroyed (362) 362 Prototype IDs (0) 0 Alien Tech Used (0) 0 Bonus (0) 0 TOTAL SCORE: 652 Bonus ------- None Cogmind --------- Core Integrity 0/250 Matter 300/300 Energy 249/250 System Corruption 0% Temperature Cool (9) Movement Rolling (140) Ox4 Location -10/Materials Parts ------- > --- POWER (1) -------- Ion Engine > --- PROPULSION (2) --- Wheel > --- UTILITY (2) ------ High-capacity Storage Unit > --- WEAPON (2) ------- (None) > --- INVENTORY (20) --- Wheel Compact Wheel Small Storage Unit Large Battery (200) High-capacity Matter Pod (177) High-capacity Matter Pod (0) Peak State ------------ > --- POWER ------------ Ion Engine > --- PROPULSION ------- Wheel Wheel > --- UTILITY ---------- Small Storage Unit High-capacity Matter Pod > --- WEAPON ----------- Assault Rifle Light Assault Rifle > --- INVENTORY -------- (None) [Rating: 7] Favorites ----------- Power Ion Engine Engine Ion Engine Propulsion Wheel Wheel Wheel Utility Small Storage Unit Storage Small Storage Unit Protection Light Armor Plating Weapon Light Assault Rifle Ballistic Gun Light Assault Rifle Build | -11 -10 ------- Run | Yrd Mat Slots Evolved . | . . Power . | . . Propulsion . | . . Utility . | . . Weapon . | . . Parts Attached 17 | 6 11 Power 3 | 1 2 Engine 3 | 1 2 Core . | . . Reactor . | . . Propulsion 5 | 2 3 Treads . | . . Leg . | . . Wheel 5 | 2 3 Hover . | . . Flight . | . . Utility 4 | 1 3 Device . | . . Storage 3 | 1 2 Processor . | . . Hackware . | . . Protection 1 | . 1 Artifact . | . . Weapon 5 | 2 3 Energy Gun . | . . Energy Cannon . | . . Ballistic Gun 5 | 2 3 Ballistic Cannon . | . . Launcher . | . . Special Weapon . | . . Impact Weapon . | . . Slashing Weapon . | . . Piercing Weapon . | . . Special Melee Weapon . | . . Unidentified Prototypes . | . . Parts Lost 8 | . 8 Power 1 | . 1 Propulsion 3 | . 3 Utility 1 | . 1 Weapon 3 | . 3 Highest Loss Streak 4 | . 4 To Critical Strikes . | . . Average Slot Usage (%) 93 | . 93 Engine 13 | . 13 Wheel 24 | . 24 Storage 20 | . 20 Protection 6 | . 6 Ballistic Gun 26 | . 26 Naked Turns . | . . Heaviest Build 50 | 13 50 Greatest Support 20 | 20 20 Greatest Overweight (x) 5 | 4 5 Average Overweight (x) . | . . Largest Inventory Capacity 20 | 8 20 Average Capacity 12 | 7 13 Most Carried 6 | . 6 Average Carried 3 | . 3 Final Capacity 20 | 8 20 Final Carried 6 | . 6 Class Distribution -------------------- 51% | Mutant 48% | Scavenger-Mutant Dominant Class ---------------- Scavenger-Mutant | -10/Materials Resources | -11 -10 ----------- Run | Yrd Mat Matter Collected 754 | 260 494 Remotely . | . . Salvage Created 567 | . 567 Parts 42 | . 42 Haulers Intercepted 1 | . 1 Recyclers Shooed 2 | . 2 Parts Field Recycled . | . . Retrieved Matter . | . . Parts Self-Destructed . | . . Prevented . | . . Kills | -11 -10 ------- Run | Yrd Mat Combat Hostiles Destroyed 11 | . 11 Guns 11 | . 11 Classes Destroyed 7 | . 7 Worker 2 | . 2 Builder 1 | . 1 Hauler 1 | . 1 Recycler 1 | . 1 Watcher 2 | . 2 Swarmer 3 | . 3 Grunt 8 | . 8 Best Kill Streak 5 | . 5 Combat Bots Only 3 | . 3 Max Kills in Single Turn 2 | . 2 Gunslinging 1 | . 1 Exploded . | . . Melee . | . . Uniques/NPCs Destroyed . | . . Combat | -11 -10 -------- Run | Yrd Mat Hostile Shots Fired 113 | . 113 Missed 29 | . 29 Damage Taken 946 | . 946 Core 264 | . 264 Absorbed by Shields . | . . Core Remaining (%) 100 | 100 . Volleys Fired 92 | . 92 Largest 2 | . 2 Hottest 40 | . 40 Shots Fired 175 | . 175 Gun 175 | . 175 Cannon . | . . Launcher . | . . Special . | . . Kinetic 175 | . 175 Thermal . | . . Explosive . | . . Electromagnetic . | . . Robot Hit Streak 8 | . 8 Robot Miss Streak 4 | . 4 Penetration Max . | . . Secondary Targets 3 | . 3 Max Gunslinging Chain 1 | . 1 Shots Hit Robots 113 | . 113 Core Hits 37 | . 37 Critical Kills . | . . Critical Parts Destroyed . | . . Critical Strikes . | . . Melee Attacks . | . . Impact . | . . Slashing . | . . Piercing . | . . Sneak Attacks . | . . Combat Hostiles . | . . Follow-up Attacks . | . . Damage Inflicted 1038 | . 1038 Guns 1038 | . 1038 Cannons . | . . Explosions . | . . Melee . | . . Ramming . | . . Kinetic 1038 | . 1038 Thermal . | . . Explosive . | . . Electromagnetic . | . . Impact . | . . Slashing . | . . Piercing . | . . Highest Corruption . | . . Average Corruption . | . . Corruption Purged . | . . Corruption Blocked . | . . Overload Shots . | . . Overflow Damage . | . . Projectiles . | . . Explosions . | . . Melee . | . . Knockbacks . | . . Impact . | . . Kinetic . | . . Secondary . | . . Self-Inflicted Damage . | . . Shots . | . . Rammed . | . . Targets Rammed . | . . Kicked . | . . Crushed . | . . Highest Temperature 70 | . 70 Average Temperature 21 | . 21 Received Heat Transfer 513 | . 513 Siege Activations . | . . Robots Corrupted . | . . Combat Hostiles . | . . Parts Fried . | . . Impact Corruptions . | . . Robots Melted . | . . Combat Hostiles . | . . Parts Melted . | . . Heat Transferred . | . . Parts Sabotaged . | . . Parts Stolen . | . . Parts Stripped . | . . Power Chain Reactions . | . . Alert | -11 -10 ------- Run | Yrd Mat Peak Influence 197 | . 197 Initial . | . . Average 99 | . 106 Maximum Alert Level . | . . Low Security (%) 100 | 100 100 Level 1 . | . . Level 2 . | . . Level 3 . | . . Level 4 . | . . Level 5 . | . . High Security . | . . Max Security . | . . Squads Dispatched 1 | . 1 Investigation . | . . Extermination . | . . Reinforcement 1 | . 1 Assault . | . . Garrison . | . . Intercept . | . . Searches Triggered . | . . Construction Impeded . | . . Haulers Reinforced . | . . Active Scanning Responses . | . . Cargo Convoy Interrupts . | . . Stealth | -11 -10 --------- Run | Yrd Mat Distress Signals 2 | . 2 Communications Jammed . | . . Distress Signals . | . . Times Spotted 22 | . 22 Peak Tracking Total 5 | . 5 Tactical Retreats 2 | . 2 Traps | -11 -10 ------- Run | Yrd Mat Traps Triggered 2 | . 2 Indirectly . | . . Trap Hack Attempts . | . . Triggered . | . . Disarmed . | . . Reprogrammed . | . . Reused . | . . Traps Extracted . | . . Installed . | . . Triggered . | . . Machines | -11 -10 ---------- Run | Yrd Mat Machines Disabled . | . . Max in Single Turn . | . . Machines Repaired . | . . Machines Dismantled . | . . Machines Sabotaged . | . . Overloaded Fab Kills . | . . Hacking | -11 -10 --------- Run | Yrd Mat Machines Accessed 4 | . 4 Terminals 4 | . 4 Fabricators . | . . Repair Stations . | . . Recycling Units . | . . Scanalyzers . | . . Garrison Access . | . . Total Hacks 11 | . 11 Successful 4 | . 4 Failed 7 | . 7 Catastrophic 1 | . 1 Database Lockouts . | . . Manual . | . . Terminals 11 | . 11 Fabricators . | . . Repair Stations . | . . Recycling Units . | . . Scanalyzers . | . . Garrison Access . | . . Terminal Hacks 4 | . 4 Emergency Access Points 1 | . 1 Locate Traps 2 | . 2 Dispatch Records 1 | . 1 Fabricator Hacks . | . . Repair Station Hacks . | . . Recycling Unit Hacks . | . . Scanalyzer . | . . Garrison Access Hacks . | . . Unauthorized Hacks . | . . Terminals . | . . Fabricators . | . . Repair Stations . | . . Recycling Units . | . . Scanalyzers . | . . Garrison Access . | . . Data Cores Recovered . | . . Used . | . . Hacking Detections 3 | . 3 Full Trace Events 1 | . 1 Feedback Events . | . . Feedback Blocked . | . . Robot Schematics Acquired . | . . Robots Built . | . . Authchips . | . . Time . | . . Total Robot Build Rating . | . . Part Schematics Acquired . | . . Parts Built . | . . Authchips . | . . Time . | . . Total Part Build Rating . | . . Parts Repaired . | . . Time . | . . Parts Recycled . | . . Recycled Matter . | . . Retrieved Matter . | . . Retrieved Components . | . . Parts Scanalyzed . | . . Part Schematics Acquired . | . . Parts Damaged . | . . Bothacking | -11 -10 ------------ Run | Yrd Mat Used RIF Installer . | . . Robots Hacked . | . . Non-combat . | . . Combat . | . . Robot Hacks Applied . | . . Relay Couplers Released . | . . Fabnet Peak Effective % . | . . Robots Rewired . | . . Allies Hacked . | . . Hacks Repelled . | . . Allies | -11 -10 -------- Run | Yrd Mat Total Allies . | . . Largest Group . | . . Highest-Rated Group . | . . Highest-Rated Ally . | . . Total Orders . | . . Ally Attacks . | . . Total Damage . | . . Kills . | . . Allies Corrupted . | . . Allies Melted . | . . Intel | -11 -10 ------- Run | Yrd Mat Robot Analysis Total . | . . Derelict Logs Recovered . | . . Drone Launches . | . . Drone Recoveries . | . . Exploration | -11 -10 ------------- Run | Yrd Mat Turns Passed 621 | 43 578 Spaces Moved 306 | 33 273 Core 23 | 15 8 Treads . | . . Legs . | . . Wheels 283 | 18 265 Hover . | . . Flight . | . . Fastest Speed 50 | 50 80 Average Speed 99 | 102 99 Slowest Speed 300 | 250 300 Overloaded Moves . | . . Propulsion Burnouts . | . . Robots Hopped . | . . Cave-ins Triggered . | . . Exploration Rate (%) 31 | 4 59 Regions Visited 1 Branch Regions . Pre-discovered Areas . | . . Known Exits Taken . | . . Unknown Exits Taken 1 | 1 . Scrap Searched . | . . Spaces Dug . | . . Terrain Destroyed . | . . Melee . | . . Projectile . | . . AOE . | . . Terrain Rammed . | . . Walls Destroyed . | . . Machines Disabled . | . . Actions | -11 -10 --------- Run | Yrd Mat Total 470 | 38 432 Wait 44 | . 44 Move 305 | 32 273 Hop . | . . Pick Up 10 | . 10 Fast Attach 9 | 6 3 Attach 4 | . 4 Detach . | . . Swap 4 | . 4 Drop 2 | . 2 Fire 92 | . 92 Melee . | . . Ram . | . . Kick . | . . Crush . | . . Escape Stasis . | . . Rewire . | . . Trap . | . . Miscellaneous . | . . Route ------- -11/Scrapyard -10/Materials (discovered 1 exit: [*Mat]) History --------- Turn | Location | Event 9 | -11/Scrapyard | Discovered new exit (range 16) 44 | -11/Scrapyard | Entered Materials 326 | -10/Materials | Discovered new exit (range 5) 491 | -10/Materials | Core integrity fell below 50% 596 | -10/Materials | Core integrity fell below 20% 622 | -10/Materials | Destroyed by G-47 Trooper with Particle Gun Last Messages --------------- 00558_ K-01 Serf cleans the Fusion Modulator. 00569_ K-01 Serf collects debris. 00575_ K-01 Serf cleans the Atomic Centrifuge. 00581_ G-34 Mercenary destroyed. 00585_ K-01 Serf collects debris. 00587_ Acquired 47 matter. 00589_ K-01 Serf collects debris. 00589_ Connecting with Terminal... 00591_ Lgt. Armor Plating destroyed. 00591_ Critical hit (Burn: +37). 00594_ K-01 Serf collects debris. 00597_ Critical hit (Burn: +37). 00598_ K-01 Serf collects debris. 00601_ Wheel destroyed. 00602_ K-01 Serf collects debris. 00603_ R-06 Scavenger collects Heat Sink. 00605_ K-01 Serf collects debris. 00607_ Lgt. Assault Rifle destroyed. 00609_ K-01 Serf collects debris. 00612_ Lgt. Assault Rifle destroyed. Map ----- +----------------------------------------------------+ | ?????????????????????????????? #??????????????? | | ??????????????????????????????# #??????????????? | | ??????????????????????????????# #??????????????? | | ??????????????????????????????# #??????????????? | | ??????????????????????????????# #??????????????? | | ??????????????????????????????# #??????????????? | | ??????????????????????????????# #??????????+???? | | ??????????????????????????????# #????????? #???? | | #########?????????????????????# #???????? #???? | | #########?????????????# ######## ????? | | """ """ ## ###########???# ^ T ????? | | """ """ ## "" # #???# ^ ^ ^ ??????? | | """ """ ## "" # #???# """" ? ????? | | ## "T # ##### """" #????? | | ##+####+## "" # +!= """" #????? | | # "" # ####### #????? | | # ! # #?????# ####?? | | # + # =#?????# ? | | ###/## # # #???### | | ## #############+########T# = ! | | # ! ########## = | | """ # u | | """ # """ """ ""? | | """ # """ """ "?? | | # ########## """ ""???"?? | | #######????????## @ g ????? | | ########????????????# ######### ??? | | #????????????+ #???????# """ """ ???? | | """ #????????????# #???????# """ ""?????? | | """ #????????????# #???????? """ ""?????? | | """ #????????????# ???????? ?? ??????? | | #????????????# ??????? ?????????? | | """ #????????????# ?????? ????????? | | """ #????????????## ### ?????#/#####????????? | | """ #??????????????+######?????? ????????????? | | ^ #????????????? ???????? ????????????? | | ###+########????????? "???#????""????????????? | | ?# +?????????? """ #??????????????????? | | ?# ##### #?????????? """ #??????????????????? | | ?# #???# #??????????? """ #?????????????#????? | | ?# #???# #???????????Y" """ ############ ????? | | ?# #???# ########?????" + + ????#? | | ?# #???# ## #????? ??# #???? +? | | ?# #???# ## #######/##### #??""" #? | | ?# ##??# ! = *=! != = # "" #? | | ?# T#??# ## ###### = +% """ #? | | ?# ##??# ## #????#! * % ! [=!# "" #? | | ?# #####+########????#!! ###############??""" #? | | ?# # #???????# #??????????????????" #? | | ?# # #???????#^ ^#?????????????????????? | +----------------------------------------------------+ Best States ------------- Heat Dissipation 25 Energy Generation 10 Energy Capacity 250 Matter Stores 363 Matter Capacity 500 Sight Range 16 Terrain Scan Density 10 Armor Coverage 150 Evasion (%) 50 Item Schematics ----------------- None Robot Schematics ------------------ None Fabricated ------------ Nothing Alien Tech Used ----------------- None Achievements -------------- None Challenges ------------ None Game ------ Seed TractorMeleeGravjet Manual? 0 Play Time 00:08:41 Cumulative 136.3 hours Start 2024.03.02 @ 14:12:47 End 2024.03.02 @ 14:20:22 Sessions 1 Manual Loads 0 Difficulty Rogue Special Mode None Game No. 80 Rogue 68 Adventurer 12 Explorer 0 Win Type - Total 1 Types 1/0/0/0/0/0/0/0/0 Lore% 19 Gallery% 36 Achievement% 29 Wizard Run 0 Options --------- Layout 1 ASCII 0 Keyboard 0 Movement Mouse Keybinds 0 Fullscreen 1 Font 32/SmallcapsGlow Map View 77x35 Zoom Use 0% Tactical HUD 1 Map Filters NONE Filters NONE Steam 1 RUN: 78b2bcc2-c1e8-4771-83fd-3a509866575c